fUST/lending_fUST_20250713
["ID","MTS","AMOUNT","RATE_DAILY","PERIOD"]
[371717700,1752401463862,-154.818984,0.00022395,2]
[371717701,1752401463877,-151.0,0.00022396,7]
[371717702,1752401463892,-151.0,0.00022396,7]
[371717703,1752401463908,-151.0,0.00022414,5]
[371717704,1752401463926,-60702.99157109,0.00022437,2]
[371717705,1752401463938,-170.55025597,0.00022438,2]
[371717706,1752401463948,-170.55025599,0.00022438,2]
[371717707,1752401463958,-170.55025598,0.00022438,2]
[371717708,1752401463967,-820.59,0.00022465,2]
[371717709,1752401463977,-151.0,0.00022465,7]
[371717710,1752401463987,-155.832917,0.00022465,7]
[371717711,1752401463997,-152.450406,0.00022465,7]
[371717712,1752401464006,-859.14,0.00022465,2]
[371717713,1752401464017,-1165.32,0.00022465,2]
[371717714,1752401464026,-611.67,0.00022465,2]
[371717715,1752401464036,-539.0,0.00022465,2]
[371717716,1752401464047,-632.75,0.00022465,2]
[371717717,1752401464056,-956.74,0.00022465,2]
[371717718,1752401464066,-1121.54,0.00022465,2]
[371717719,1752401464076,-2443.8,0.00022465,2]
[371717720,1752401464086,-2757.78,0.00022465,2]
[371717721,1752401464097,-630.2,0.00022465,2]
[371717722,1752401464106,-902.92,0.00022465,2]
[371717723,1752401464116,-2126.61,0.00022465,2]
[371717724,1752401464126,-1054.85,0.00022465,2]
[371717725,1752401464135,-2976.86,0.00022465,2]
[371717726,1752401464145,-460.0,0.00022465,2]
[371717727,1752401464296,-702.08,0.00022465,2]
[371717728,1752401464382,-487.23,0.00022465,2]
[371717729,1752401464396,-218.0,0.00022466,7]
[371717730,1752401464406,-3932.39352121,0.00022486,7]
[371717731,1752401464416,-19079.39687773,0.0002249,7]
[371717732,1752401464426,-151.0,0.0002249,7]
[371717733,1752401464435,-151.0,0.0002249,7]
[371717734,1752401464446,-265.516568,0.0002249,7]
[371717735,1752401464455,-265.516568,0.0002249,7]
[371717736,1752401464466,-236.328438,0.0002249,7]
[371717737,1752401464475,-236.328438,0.0002249,7]
[371717738,1752401464485,-151.0,0.0002249,7]
[371717739,1752401464495,-151.0,0.0002249,7]
[371717740,1752401464506,-151.0,0.0002249,7]
[371717741,1752401464516,-151.0,0.0002249,7]
[371717742,1752401464526,-151.0,0.0002249,7]
[371717743,1752401464536,-440.83284,0.0002249,7]
[371717744,1752401464547,-440.83284,0.0002249,7]
[371717745,1752401464557,-447.490856,0.0002249,2]
[371717746,1752401464566,-447.490856,0.0002249,2]
[371717747,1752401464577,-151.0,0.0002249,7]
[371717748,1752401464587,-836.956561,0.000225,7]
[371717749,1752401464596,-214.29528141,0.000225,7]
[371717750,1752401464606,-12598.31844336,0.000225,7]
[371717751,1752401464616,-300.0,0.00022521,2]
[371717752,1752401464626,-170.55025599,0.00022575,2]
[371717753,1752401464635,-205.0,0.000226,2]
[371717754,1752401464645,-465.946139,0.00022603,2]
[371717755,1752401464655,-151.0,0.00022603,7]
[371717756,1752401464664,-200.0,0.0002261,6]
[371717757,1752401464673,-443.80285611,0.00022614,2]
[371717758,1752401464683,-820.65,0.00022739,2]
[371717759,1752401464694,-859.28,0.00022739,2]
[371717760,1752401464703,-1165.38475909,0.00022739,2]
[371717761,1752401464713,-611.86,0.00022739,2]
[371717762,1752401464723,-632.97,0.00022739,2]
[371717763,1752401464733,-956.93,0.00022739,2]
[371717764,1752401464743,-1121.59,0.00022739,2]
[371717765,1752401464752,-2443.92261556,0.00022739,2]
[371717766,1752401464762,-2757.84,0.00022739,2]
[371717767,1752401464775,-630.33,0.00022739,2]
[371717768,1752401464786,-903.08,0.00022739,2]
[371717769,1752401464797,-2126.73000001,0.00022739,2]
[371717770,1752401464808,-1055.08,0.00022739,2]
[371717771,1752401464819,-2976.99,0.00022739,2]
[371717772,1752401464829,-196.48,0.00022739,2]
[371717773,1752401464839,-702.09,0.00022739,2]
[371717774,1752401464851,-487.31,0.00022739,2]
[371717775,1752401464861,-170.55025597,0.0002274,2]
[371717776,1752401464870,-170.55025599,0.0002274,2]
[371717777,1752401464880,-170.55025598,0.0002274,2]
[371717778,1752401464890,-318.1345751,0.0002274,2]
[371717779,1752401464900,-1046.8538647,0.0002274,2]
[371717780,1752401464910,-301.6664248,0.0002274,2]
[371717781,1752401464919,-159.6475778,0.0002274,2]
[371717782,1752401464929,-177.931191,0.0002274,2]
[371717783,1752401464939,-177.931191,0.0002274,2]
[371717784,1752401464948,-153.0,0.0002274,2]
[371717785,1752401464958,-159.6475778,0.0002274,2]
[371717786,1752401464968,-576.5770021,0.0002274,2]
[371717787,1752401464977,-153.0,0.0002274,2]
[371717788,1752401464987,-177.931191,0.0002274,2]
[371717789,1752401464996,-159.6475778,0.0002274,2]
[371717790,1752401465006,-576.5770021,0.0002274,2]
[371717791,1752401465016,-159.6475778,0.0002274,2]
[371717792,1752401465025,-177.931191,0.0002274,2]
[371717793,1752401465035,-576.5770021,0.0002274,2]
[371717794,1752401465046,-153.0,0.0002274,2]
[371717795,1752401465057,-177.931191,0.0002274,2]
[371717796,1752401465066,-576.5770021,0.0002274,2]
[371717797,1752401465076,-159.6475778,0.0002274,2]
[371717798,1752401465086,-159.6475778,0.0002274,2]
[371717799,1752401465097,-177.931191,0.0002274,2]
[371717800,1752401465108,-576.5770021,0.0002274,2]
[371717801,1752401465119,-177.931191,0.0002274,2]
[371717802,1752401465129,-159.6475778,0.0002274,2]
[371717803,1752401465140,-153.0,0.0002274,2]
[371717804,1752401465151,-576.5770021,0.0002274,2]
[371717805,1752401465162,-159.6475778,0.0002274,2]
[371717806,1752401465173,-576.5770021,0.0002274,2]
[371717807,1752401465183,-177.931191,0.0002274,2]
[371717808,1752401465194,-159.6475778,0.0002274,2]
[371717809,1752401465205,-576.5770021,0.0002274,2]
[371717810,1752401465215,-177.931191,0.0002274,2]
[371717811,1752401465225,-177.931191,0.0002274,2]
[371717812,1752401465235,-159.6475778,0.0002274,2]
[371717813,1752401465246,-576.5770021,0.0002274,2]
[371717814,1752401465255,-354.987873,0.0002274,2]
[371717815,1752401465266,-164.4238486,0.0002274,2]
[371717816,1752401465276,-320.4957135,0.0002274,2]
[371717817,1752401465286,-170.55025599,0.00022795,2]
[371717818,1752401465298,-3932.39352121,0.00022797,7]
[371717819,1752401465308,-151.0,0.000228,7]
[371717820,1752401465318,-2288.35449483,0.00022814,2]
[371717821,1752401465328,-151.0,0.00022865,7]
[371717822,1752401465339,-151.0,0.00022911,6]
[371717823,1752401465350,-205.0,0.0002293,2]
[371717824,1752401465361,-500.0,0.00022986,8]
[371717825,1752401465372,-1630.64,0.00023,2]
[371717826,1752401465385,-5000.0,0.00023,20]
[371717827,1752401465395,-1357.53,0.00023,7]
[371717828,1752401465405,-170.0,0.00023014,7]
[371717829,1752401465416,-151.0,0.00023024,7]
[371717830,1752401465427,-151.0,0.00023024,7]
[371717831,1752401465437,-500.0,0.00023025,2]
[371717832,1752401465447,-170.55025599,0.00023041,2]
[371717833,1752401465467,-151.0,0.00023068,7]
[371717834,1752401465477,-207.663682,0.00023068,7]
[371717835,1752401465487,-368.994539,0.00023068,7]
[371717836,1752401465497,-368.994539,0.00023068,7]
[371717837,1752401465508,-151.0,0.00023068,7]
[371717838,1752401465519,-151.0,0.00023068,7]
[371717839,1752401465529,-341.23528419,0.00023068,2]
[371717840,1752401465539,-151.484593,0.000231,7]
[371717841,1752401465550,-245.015584,0.000231,7]
[371717842,1752401465560,-151.0,0.000231,7]
[371717843,1752401465570,-151.0,0.000231,7]
[371717844,1752401465580,-151.0,0.000231,7]
[371717845,1752401465590,-151.0,0.000231,7]
[371717846,1752401465600,-151.0,0.000231,7]
[371717847,1752401465610,-236.682059,0.000231,7]
[371717848,1752401465620,-293.455655,0.000231,7]
[371717849,1752401465630,-293.455655,0.000231,7]
[371717850,1752401465640,-151.0,0.000231,7]
[371717851,1752401465650,-151.90052,0.000231,7]
[371717852,1752401465660,-159.572169,0.000231,7]
[371717853,1752401465670,-159.572169,0.000231,7]
[371717854,1752401465680,-151.0,0.000231,7]
[371717855,1752401465689,-151.0,0.000231,7]
[371717856,1752401465699,-151.0,0.000231,7]
[371717857,1752401465709,-4206.97,0.000231,7]
[371717858,1752401465719,-27931.03,0.000231,2]
[371717859,1752401465729,-3932.39352121,0.00023107,8]
[371717860,1752401465738,-151.0,0.00023185,3]
[371717861,1752401465749,-1600.0,0.00023256,2]
[371717862,1752401465759,-732.579109,0.00023256,2]
[371717863,1752401465768,-205.0,0.0002326,2]
[371717864,1752401465781,-428.9497036,0.00023288,2]
[371717865,1752401465791,-428.9497036,0.00023288,2]
[371717866,1752401465801,-428.9497036,0.00023288,2]
[371717867,1752401465811,-856.560676,0.00023288,2]
[371717868,1752401465823,-231.28369723,0.0002329,2]
[371717869,1752401465832,-154.818984,0.00023316,10]
[371717870,1752401465842,-151.0,0.00023343,2]
[371717871,1752401465854,-293.68440778,0.00023343,2]
[371717872,1752401465864,-209.78734587,0.00023343,2]
[371717873,1752401465873,-151.0,0.00023343,2]
[371717874,1752401465883,-151.0,0.00023343,2]
[371717875,1752401465893,-500.0,0.00023343,2]
[371717876,1752401465902,-500.0,0.00023343,2]
[371717877,1752401465911,-500.0,0.00023343,2]
[371717878,1752401465921,-697.0,0.00023343,2]
[371717879,1752401465931,-151.0,0.00023343,2]
[371717880,1752401465941,-500.0,0.00023343,2]
[371717881,1752401465951,-151.0,0.00023343,2]
[371717882,1752401465960,-280.91465027,0.00023343,2]
[371717883,1752401465970,-151.0,0.00023343,2]
[371717884,1752401465980,-274.08742551,0.00023343,2]
[371717885,1752401465990,-500.0,0.00023343,2]
[371717886,1752401466000,-151.0,0.0002337,7]
[371717887,1752401466009,-191.014586,0.0002337,7]
[371717888,1752401466019,-265.516568,0.0002337,7]
[371717889,1752401466031,-265.516568,0.0002337,7]
[371717890,1752401466041,-236.328438,0.0002337,7]
[371717891,1752401466051,-236.328438,0.0002337,7]
[371717892,1752401466061,-281.966376,0.0002337,7]
[371717893,1752401466071,-151.0,0.0002337,7]
[371717894,1752401466082,-151.0,0.0002337,7]
[371717895,1752401466092,-151.0,0.0002337,7]
[371717896,1752401466103,-151.0,0.0002337,7]
[371717897,1752401466113,-440.83284,0.0002337,7]
[371717898,1752401466124,-440.83284,0.0002337,7]
[371717899,1752401466136,-447.490856,0.0002337,2]
[371717900,1752401466147,-447.490856,0.0002337,2]
[371717901,1752401466156,-247.62234683,0.0002337,2]
[371717902,1752401466170,-151.0,0.0002337,2]
[371717903,1752401466179,-501.58184393,0.0002337,2]
[371717904,1752401466190,-500.0,0.0002337,2]
[371717905,1752401466201,-500.0,0.0002337,2]
[371717906,1752401466212,-697.0,0.0002337,2]
[371717907,1752401466223,-500.0,0.0002337,2]
[371717908,1752401466233,-151.0,0.0002337,2]
[371717909,1752401466243,-151.0,0.0002337,2]
[371717910,1752401466253,-500.0,0.0002337,2]
[371717911,1752401466264,-2288.35449483,0.00023397,2]
[371717912,1752401466273,-199.56185223,0.00023398,2]
[371717913,1752401466283,-500.0,0.00023398,2]
[371717914,1752401466294,-500.0,0.00023398,2]
[371717915,1752401466304,-697.0,0.00023398,2]
[371717916,1752401466314,-516.43685009,0.00023398,2]
[371717917,1752401466324,-198.0,0.00023398,2]
[371717918,1752401466334,-500.0,0.00023398,2]
[371717919,1752401466343,-151.0,0.00023408,6]
[371717920,1752401466353,-3932.39352121,0.00023417,9]
[371717921,1752401466363,-151.0,0.00023425,7]
[371717922,1752401466373,-500.0,0.00023425,2]
[371717923,1752401466383,-500.0,0.00023425,2]
[371717924,1752401466393,-697.0,0.00023425,2]
[371717925,1752401466404,-500.0,0.00023425,2]
[371717926,1752401466413,-653.738776,0.00023441,4]
[371717927,1752401466423,-500.0,0.00023453,2]
[371717928,1752401466433,-500.0,0.00023453,2]
[371717929,1752401466442,-697.0,0.00023453,2]
[371717930,1752401466452,-500.0,0.00023453,2]
[371717931,1752401466462,-500.0,0.00023456,2]
[371717932,1752401466471,-160.0,0.0002346,7]
[371717933,1752401466481,-160.0,0.0002346,5]
[371717934,1752401466491,-500.0,0.0002348,2]
[371717935,1752401466501,-500.0,0.0002348,2]
[371717936,1752401466512,-697.0,0.0002348,2]
[371717937,1752401466522,-261.26192034,0.0002348,2]
[371717938,1752401466531,-500.0,0.00023507,2]
[371717939,1752401466541,-246.04018979,0.00023507,2]
[371717940,1752401466551,-697.0,0.00023507,2]
[371717941,1752401466561,-500.0,0.00023535,2]
[371717942,1752401466571,-697.0,0.00023535,2]
[371717943,1752401466582,-273.54425928,0.00023562,2]
[371717944,1752401466592,-697.0,0.00023562,2]
[371717945,1752401466603,-1000.0,0.00023573,2]
[371717946,1752401466614,-697.0,0.0002359,2]
[371717947,1752401466624,-205.0,0.0002359,2]
[371717948,1752401466635,-697.0,0.00023617,2]
[371717949,1752401466646,-697.0,0.00023644,2]
[371717950,1752401466656,-697.0,0.00023672,2]
[371717951,1752401466666,-155.991271,0.00023672,7]
[371717952,1752401466675,-154.818984,0.00023677,10]
[371717953,1752401466685,-154.818984,0.00023692,2]
[371717954,1752401466695,-697.0,0.00023699,2]
[371717955,1752401466704,-697.0,0.00023727,2]
[371717956,1752401466715,-1206.81469084,0.00023728,9]
[371717957,1752401466798,-283.85756455,0.00023728,9]
[371717958,1752401466810,-476.46081799,0.00023728,9]
[371717959,1752401466828,-460.0,0.00021369,2]
[371717960,1752401466837,-1541.05451653,0.00023728,9]
[371717961,1752401466888,-460.0,0.00021643,2]
[371717962,1752401466898,-380.26,0.00021917,2]
[371717963,1752401466907,-424.2059313,0.00023728,9]
[371717964,1752401466917,-697.0,0.00023754,2]
[371717965,1752401466926,-411.3340687,0.00023781,2]
[371717966,1752401467099,-1746.533893,0.00021,2]
[371717967,1752401467110,-1000.0,0.000215,2]
[371717968,1752401467121,-1000.0,0.00022,2]
[371717969,1752401467132,-1000.0,0.000225,2]
[371717970,1752401467142,-1000.0,0.00023,2]
[371717971,1752401467151,-500.0,0.00023343,2]
[371717972,1752401467162,-500.0,0.0002337,2]
[371717973,1752401467174,-500.0,0.00023398,2]
[371717974,1752401467184,-500.0,0.00023425,2]
[371717975,1752401467193,-500.0,0.00023453,2]
[371717976,1752401467202,-500.0,0.0002348,2]
[371717977,1752401467212,-1000.0,0.000235,2]
[371717978,1752401467222,-500.0,0.00023507,2]
[371717979,1752401467231,-572.45188498,0.00023535,2]
[371717980,1752401467241,-285.6659313,0.00023781,2]
[371717981,1752401467251,-697.0,0.00023809,2]
[371717982,1752401467260,-697.0,0.00023836,2]
[371717983,1752401467270,-697.0,0.00023864,2]
[371717984,1752401467279,-443.80285611,0.00023869,2]
[371717985,1752401467290,-697.0,0.00023891,2]
[371717986,1752401467305,-151.0,0.00023906,6]
[371717987,1752401467315,-1904.69041535,0.00023916,2]
[371717988,1752401467324,-697.0,0.00023918,2]
[371717989,1752401467334,-205.0,0.0002392,2]
[371717990,1752401467343,-697.0,0.00023946,2]
[371717991,1752401467353,-714.39459525,0.00023973,2]
[371717992,1752401467362,-2288.35449483,0.00023979,2]
[371717994,1752401467372,-1477.13592918,0.00024,3]
[371717995,1752401467639,-609.92192464,0.00024,3]
[371718002,1752401514287,63581.43939048,0.00025245,120]
[371718005,1752401821286,476.831063,0.00013699,2]
[371718006,1752401904891,12244.69380628,0.00015634,2]
[371718007,1752401904921,12655.30619372,0.00015634,2]
[371718008,1752401951663,1409.32281408,0.000163,2]
[371718009,1752402202436,5935.3709922,0.0001572,2]
[371718010,1752402202466,4064.6290078,0.0001572,2]
[371718014,1752402339471,5000.0,0.000163,2]
[371718019,1752402355395,5000.0,0.000163,2]
[371718033,1752402492710,226.54751689,0.00016238,2]
[371718034,1752402522217,670.249146,0.0002521,120]
[371718189,1752402638768,-221.46611771,0.00016338,2]
[371718191,1752402638779,-3081.69395409,0.00016338,2]
[371718195,1752402638821,-1412.85080787,0.00016338,2]
[371718198,1752402638832,-300.0,0.00016437,2]
[371718200,1752402638848,-460.0,0.00016438,2]
[371718202,1752402638865,-460.0,0.00016438,2]
[371718204,1752402638876,-460.0,0.00016438,2]
[371718206,1752402638887,-460.0,0.00016438,2]
[371718208,1752402638899,-460.0,0.00016438,2]
[371718210,1752402638910,-460.0,0.00016438,2]
[371718212,1752402638921,-460.0,0.00016438,2]
[371718214,1752402638932,-115.1826393,0.00016438,2]
[371718216,1752402638945,-344.8173607,0.00016438,2]
[371718218,1752402638956,-460.0,0.00016438,2]
[371718220,1752402638967,-460.0,0.00016438,2]
[371718222,1752402638978,-428.46271094,0.00016438,2]
[371718224,1752402638989,-460.0,0.00016438,2]
[371718226,1752402639000,-460.0,0.00016438,2]
[371718228,1752402639011,-460.0,0.00016438,2]
[371718230,1752402639022,-460.0,0.00016438,2]
[371718232,1752402639032,-460.0,0.00016438,2]
[371718234,1752402639044,-460.0,0.00016438,2]
[371718236,1752402639055,-460.0,0.00016438,2]
[371718238,1752402639066,-460.0,0.00016438,2]
[371718240,1752402639077,-461.26412983,0.00016438,2]
[371718243,1752402639087,-460.0,0.00016438,2]
[371718245,1752402639097,-1000.0,0.00016438,2]
[371718247,1752402639108,-460.0,0.00016438,2]
[371718249,1752402639119,-318.64267657,0.00016438,2]
[371718251,1752402639129,-460.0,0.00016438,2]
[371718253,1752402639140,-460.0,0.00016438,2]
[371718255,1752402639150,-460.0,0.00016438,2]
[371718257,1752402639161,-460.0,0.00016438,2]
[371718259,1752402639171,-460.0,0.00016438,2]
[371718261,1752402639187,-460.0,0.00016438,2]
[371718263,1752402639197,-460.0,0.00016438,2]
[371718265,1752402639208,-460.0,0.00016438,2]
[371718268,1752402639219,-460.0,0.00016438,2]
[371718270,1752402639229,-460.0,0.00016438,2]
[371718272,1752402639240,-460.0,0.00016438,2]
[371718274,1752402639252,-460.0,0.00016438,2]
[371718276,1752402639263,-460.0,0.00016438,2]
[371718278,1752402639274,-460.0,0.00016438,2]
[371718280,1752402639285,-524.16312689,0.00016438,2]
[371718282,1752402639297,-460.0,0.00016438,2]
[371718284,1752402639308,-460.0,0.00016438,2]
[371718286,1752402639318,-460.0,0.00016438,2]
[371718288,1752402639329,-460.0,0.00016438,2]
[371718290,1752402639340,-460.0,0.00016438,2]
[371718292,1752402639350,-460.0,0.00016438,2]
[371718294,1752402639360,-460.0,0.00016438,2]
[371718296,1752402639371,-460.0,0.00016438,2]
[371718298,1752402639382,-460.0,0.00016438,2]
[371718300,1752402639392,-460.0,0.00016438,2]
[371718302,1752402639403,-460.0,0.00016438,2]
[371718304,1752402639413,-460.0,0.00016438,2]
[371718306,1752402639424,-320.0,0.00016438,2]
[371718308,1752402639435,-460.0,0.00016438,2]
[371718310,1752402639446,-460.0,0.00016438,2]
[371718312,1752402639459,-460.0,0.00016438,2]
[371718314,1752402639470,-460.0,0.00016438,2]
[371718316,1752402639481,-460.0,0.00016438,2]
[371718319,1752402639491,-460.0,0.00016438,2]
[371718321,1752402639503,-460.0,0.00016438,2]
[371718323,1752402639513,-571.46218896,0.00016438,2]
[371718325,1752402639524,-460.0,0.00016438,2]
[371718327,1752402639535,-186.23635834,0.00016438,2]
[371718357,1752402639835,-273.76364166,0.00016438,2]
[371718359,1752402639846,-460.0,0.00016438,2]
[371718361,1752402639856,-460.0,0.00016438,2]
[371718363,1752402639866,-460.0,0.00016438,2]
[371718365,1752402639876,-460.0,0.00016438,2]
[371718367,1752402639886,-460.0,0.00016438,2]
[371718369,1752402639896,-460.0,0.00016438,2]
[371718371,1752402639906,-460.0,0.00016438,2]
[371718373,1752402639916,-462.36318048,0.00016438,2]
[371718375,1752402639926,-460.0,0.00016438,2]
[371718377,1752402639936,-460.0,0.00016438,2]
[371718378,1752402639946,-496.57,0.00016438,2]
[371718380,1752402639956,-460.0,0.00016438,2]
[371718382,1752402639968,-460.0,0.00016438,2]
[371718384,1752402639978,-460.0,0.00016438,2]
[371718386,1752402639989,-460.0,0.00016438,2]
[371718388,1752402639999,-460.0,0.00016438,2]
[371718389,1752402640010,-460.0,0.00016438,2]
[371718390,1752402640022,-460.0,0.00016438,2]
[371718391,1752402640031,-710.47,0.00016438,2]
[371718392,1752402640041,-460.0,0.00016438,2]
[371718393,1752402640051,-460.0,0.00016438,2]
[371718394,1752402640061,-1051.33,0.00016438,2]
[371718395,1752402640071,-460.0,0.00016438,2]
[371718396,1752402640080,-460.0,0.00016438,2]
[371718397,1752402640090,-460.0,0.00016438,2]
[371718398,1752402640100,-460.0,0.00016438,2]
[371718399,1752402640110,-460.0,0.00016438,2]
[371718400,1752402640120,-460.0,0.00016438,2]
[371718401,1752402640130,-460.0,0.00016438,2]
[371718402,1752402640141,-460.0,0.00016438,2]
[371718403,1752402640152,-460.0,0.00016438,2]
[371718404,1752402640162,-460.0,0.00016438,2]
[371718405,1752402640173,-460.0,0.00016438,2]
[371718406,1752402640192,-460.0,0.00016438,2]
[371718407,1752402640211,-460.0,0.00016438,2]
[371718408,1752402640221,-696.32,0.00016438,2]
[371718409,1752402640231,-500.0,0.00016438,2]
[371718410,1752402640240,-460.0,0.00016438,2]
[371718411,1752402640250,-460.0,0.00016438,2]
[371718412,1752402640260,-460.0,0.00016438,2]
[371718413,1752402640270,-460.0,0.00016438,2]
[371718414,1752402640281,-460.0,0.00016438,2]
[371718416,1752402640290,-460.0,0.00016438,2]
[371718418,1752402640300,-460.0,0.00016438,2]
[371718420,1752402640310,-460.0,0.00016438,2]
[371718422,1752402640319,-460.0,0.00016438,2]
[371718424,1752402640329,-460.0,0.00016438,2]
[371718426,1752402640339,-460.0,0.00016438,2]
[371718427,1752402640348,-460.0,0.00016438,2]
[371718429,1752402640357,-460.0,0.00016438,2]
[371718431,1752402640367,-460.0,0.00016438,2]
[371718433,1752402640376,-460.0,0.00016438,2]
[371718435,1752402640387,-460.0,0.00016438,2]
[371718437,1752402640396,-460.0,0.00016438,2]
[371718439,1752402640406,-460.0,0.00016438,2]
[371718441,1752402640415,-459.25,0.00016438,2]
[371718443,1752402640425,-1132.11,0.00016438,2]
[371718445,1752402640435,-503.85,0.00016438,2]
[371718448,1752402640444,-460.0,0.00016438,2]
[371718450,1752402640455,-1332.22,0.00016438,2]
[371718452,1752402640465,-502.81,0.00016438,2]
[371718454,1752402640474,-460.0,0.00016438,2]
[371718456,1752402640484,-460.0,0.00016438,2]
[371718458,1752402640493,-460.0,0.00016438,2]
[371718460,1752402640503,-333.88,0.00016438,2]
[371718462,1752402640514,-493.58,0.00016438,2]
[371718464,1752402640524,-460.0,0.00016438,2]
[371718466,1752402640534,-942.93,0.00016438,2]
[371718468,1752402640543,-1592.51,0.00016438,2]
[371718470,1752402640553,-460.0,0.00016438,2]
[371718472,1752402640563,-460.0,0.00016438,2]
[371718474,1752402640572,-460.0,0.00016438,2]
[371718476,1752402640581,-460.0,0.00016438,2]
[371718478,1752402640591,-1878.02,0.00016438,2]
[371718480,1752402640600,-460.0,0.00016438,2]
[371718482,1752402640610,-460.0,0.00016712,2]
[371718484,1752402640620,-460.0,0.00016712,2]
[371718486,1752402640630,-460.0,0.00016712,2]
[371718488,1752402640639,-460.0,0.00016712,2]
[371718490,1752402640649,-460.0,0.00016712,2]
[371718492,1752402640658,-460.0,0.00016712,2]
[371718494,1752402640668,-460.0,0.00016712,2]
[371718496,1752402640678,-460.0,0.00016712,2]
[371718498,1752402640687,-460.0,0.00016712,2]
[371718500,1752402640696,-460.0,0.00016712,2]
[371718502,1752402640706,-460.0,0.00016712,2]
[371718505,1752402640715,-241.47056953,0.00016712,2]
[371718507,1752402640724,-460.0,0.00016712,2]
[371718509,1752402640735,-460.0,0.00016712,2]
[371718510,1752402640744,-1002.61451188,0.00016712,2]
[371718513,1752402640754,-460.0,0.00016712,2]
[371718515,1752402640765,-460.0,0.00016712,2]
[371718517,1752402640775,-460.0,0.00016712,2]
[371718519,1752402640784,-460.0,0.00016712,2]
[371718521,1752402640795,-460.0,0.00016712,2]
[371718523,1752402640805,-460.0,0.00016712,2]
[371718525,1752402640815,-321.82930831,0.00016712,2]
[371718527,1752402640825,-461.37576427,0.00016712,2]
[371718529,1752402640835,-460.0,0.00016712,2]
[371718531,1752402640845,-460.0,0.00016712,2]
[371718533,1752402640855,-460.0,0.00016712,2]
[371718535,1752402640864,-460.0,0.00016712,2]
[371718537,1752402640874,-460.0,0.00016712,2]
[371718539,1752402640883,-460.0,0.00016712,2]
[371718541,1752402640893,-460.0,0.00016712,2]
[371718543,1752402640903,-460.0,0.00016712,2]
[371718545,1752402640913,-460.0,0.00016712,2]
[371718547,1752402640923,-320.05533489,0.00016712,2]
[371718549,1752402640932,-460.0,0.00016712,2]
[371718551,1752402640941,-460.0,0.00016712,2]
[371718553,1752402640951,-460.0,0.00016712,2]
[371718555,1752402640961,-460.0,0.00016712,2]
[371718557,1752402640971,-460.0,0.00016712,2]
[371718559,1752402640981,-460.0,0.00016712,2]
[371718561,1752402640991,-460.0,0.00016712,2]
[371718563,1752402641001,-460.0,0.00016712,2]
[371718565,1752402641011,-460.0,0.00016712,2]
[371718567,1752402641020,-525.00570465,0.00016712,2]
[371718569,1752402641030,-460.0,0.00016712,2]
[371718571,1752402641040,-460.0,0.00016712,2]
[371718573,1752402641050,-460.0,0.00016712,2]
[371718575,1752402641060,-460.0,0.00016712,2]
[371718577,1752402641070,-460.0,0.00016712,2]
[371718579,1752402641079,-460.0,0.00016712,2]
[371718581,1752402641089,-460.0,0.00016712,2]
[371718583,1752402641098,-460.0,0.00016712,2]